Service area,Service sub division,TVBC Service,Expense type,Detailed expense type,TVBC account code,Date Paid,Transaction Reference, Nett Value ,Supplier Name
Environmental & Regulatory,Regulatory Services,Premises & Asset Management,Premises related Expenditure,Water Services,Water And Sewerage Charges,15/07/2021,346070,-9578.94,Castle Water Limited
Central Services to the Public,Management & Support Services,Premises & Asset Management,Premises related Expenditure,Water Services,Water And Sewerage Charges,15/07/2021,345096,-8509.23,Castle Water Limited
Environmental & Regulatory,Regulatory Services,Premises & Asset Management,Premises related Expenditure,Water Services,Water And Sewerage Charges,15/07/2021,346483,-7711.1,Castle Water Limited
External Trading Accounts,Business Parks,Premises & Asset Management,Premises related Expenditure,Miscellaneous Expenses,Service Charge,22/07/2021,345489,-6972.5,Test Valley Borough Council
Environmental & Regulatory,Regulatory Services,Premises & Asset Management,Premises related Expenditure,Water Services,Water And Sewerage Charges,15/07/2021,346069,-4326.4,Castle Water Limited
Environmental & Regulatory,Community Development,Community and Leisure ,Supplies & Services,Grants & Subscriptions,Subscriptions,15/07/2021,346410,-2492,Hampshire County Council
Cultural & Related,Recreation & Sport,Premises & Asset Management,Premises related Expenditure,Water Services,Water And Sewerage Charges,15/07/2021,345842,-1663.3,Castle Water Limited
Environmental & Regulatory,Waste & Recycling Management,Environmental,Transport Related Expenditure,Direct Transport Costs,Repair Materials,22/07/2021,348080,-520,Adams Morey Ltd
Environmental & Regulatory,Waste & Recycling Management,Environmental,Transport Related Expenditure,Direct Transport Costs,Repair Materials,22/07/2021,348082,-500,Adams Morey Ltd
Central Services to the Public,Management & Support Services,HR Services,Supplies & Services,Miscellaneous Expenses,Medical Fees,29/07/2021,348308,-500,University Hospital Soton Nhs Foundation Trst
Environmental & Regulatory,Street Cleansing (not chargeable to Highways),Environmental,Supplies & Services,Miscellaneous Expenses,Vehicle insurance claims,15/07/2021,347318,500,B P Rolls Ltd
Environmental & Regulatory,Community Development,Community and Leisure ,Supplies & Services,Miscellaneous Expenses,Promotions / Special Events,29/07/2021,348484,500,South Downs Leadership & Management Servs Ltd
Planning & Development,Planning Policy,Plan Pol & Transport,Supplies & Services,Communications & Computing,Communication Links,29/07/2021,347873,419.97,Zen Internet Limited
Cultural & Related,Recreation & Sport,Premises & Asset Management,Premises related Expenditure,Water Services,Water And Sewerage Charges,15/07/2021,347418,516.35,Castle Water Limited
Environmental & Regulatory,Waste management,Environmental,Employees,Indirect Employee Expenses,Agency Staff - Waged Posts,29/07/2021,348685,437.92,Aligra
Planning & Development,Planning Policy,Plan Pol & Transport,Supplies & Services,Communications & Computing,Computer Software,15/07/2021,347705,438.15,Phoenix Software Ltd
Central Services to the Public,Management & Support Services,Legal & Democratic,Supplies & Services,"Printing, Stationery & General Office Expenses",Internal Printing ,22/07/2021,347675,268.3,Ricoh Uk Ltd
Central Services to the Public,Elections,Legal & Democratic,Supplies & Services,"Printing, Stationery & General Office Expenses",Internal Printing ,22/07/2021,347675,133.27,Ricoh Uk Ltd
Environmental & Regulatory,Regulatory Services,Legal & Democratic,Supplies & Services,"Printing, Stationery & General Office Expenses",Internal Printing ,22/07/2021,347675,39.27,Ricoh Uk Ltd
Cultural & Related,Culture & Heritage,Premises & Asset Management,Premises related Expenditure,Water Services,Water And Sewerage Charges,15/07/2021,347422,539.25,Castle Water Limited
Central Services to the Public,Management & Support Services,Housing and Environmental Health ,Supplies & Services,Services,Training Courses,08/07/2021,346839,450,Solace Enterprises Ltd
Planning & Development,Development Control,Planning & Building,Transport Related Expenditure,Contract Hire and Operating Leases,Officer lease cars,15/07/2021,347721,541.03,Arval Uk Ltd
Central Services to the Public,Management & Support Services,Community and Leisure ,Supplies & Services,Miscellaneous Expenses,Promotions / Special Events,22/07/2021,348298,543.67,Romsey Town Council
External Trading Accounts,Business Parks,Premises & Asset Management,Supplies & Services,Communications & Computing,Land Line Telephone Charges,01/07/2021,346505,27.26,Virgin Media Payments Ltd
Cultural & Related,Culture & Heritage,Premises & Asset Management,Supplies & Services,Communications & Computing,Land Line Telephone Charges,01/07/2021,346505,26,Virgin Media Payments Ltd
Cultural & Related,Culture & Heritage,Premises & Asset Management,Supplies & Services,Communications & Computing,Land Line Telephone Charges,01/07/2021,346505,39,Virgin Media Payments Ltd
Central Services to the Public,Management & Support Services,IT,Supplies & Services,Communications & Computing,Communication Links,01/07/2021,346505,26,Virgin Media Payments Ltd
Central Services to the Public,Management & Support Services,IT,Supplies & Services,Communications & Computing,Communication Links,01/07/2021,346505,67,Virgin Media Payments Ltd
Cultural & Related,Recreation & Sport,Community and Leisure ,Supplies & Services,Communications & Computing,Land Line Telephone Charges,01/07/2021,346505,26,Virgin Media Payments Ltd
Cultural & Related,Recreation & Sport,Community and Leisure ,Supplies & Services,Communications & Computing,Land Line Telephone Charges,01/07/2021,346505,0,Virgin Media Payments Ltd
Cultural & Related,Recreation & Sport,Community and Leisure ,Supplies & Services,Communications & Computing,Land Line Telephone Charges,01/07/2021,346505,13,Virgin Media Payments Ltd
Cultural & Related,Culture & Heritage,Community and Leisure ,Supplies & Services,Communications & Computing,Communication Links,01/07/2021,346505,74.01,Virgin Media Payments Ltd
"Highways, Roads & Transport",Parking Services,Plan Pol & Transport,Supplies & Services,Communications & Computing,Alarm Lines,01/07/2021,346505,24,Virgin Media Payments Ltd
Central Services to the Public,Management & Support Services,Environmental,Supplies & Services,Communications & Computing,Land Line Telephone Charges,01/07/2021,346505,52.93,Virgin Media Payments Ltd
Central Services to the Public,Emergency Planning,Corporate & Democratic,Supplies & Services,Communications & Computing,Land Line Telephone Charges,01/07/2021,346505,78,Virgin Media Payments Ltd
Central Services to the Public,Management & Support Services,Environmental,Supplies & Services,"Clothes, Uniforms & Laundry",Clothing + Uniforms,01/07/2021,346460,416.01,Smi Group
Central Services to the Public,Management & Support Services,Environmental,Supplies & Services,Miscellaneous Expenses,Health And Safety,01/07/2021,346460,39.75,Smi Group
Environmental & Regulatory,Waste management,Environmental,Transport Related Expenditure,Direct Transport Costs,Repair Materials,22/07/2021,347817,456.11,Dennis Eagle Ltd
Environmental & Regulatory,Street Cleansing (not chargeable to Highways),Environmental,Transport Related Expenditure,Direct Transport Costs,Repair Materials,29/07/2021,348259,457.09,Gm Sweepers Uk Ltd
Central Services to the Public,Management & Support Services,IT,Supplies & Services,Communications & Computing,Communication Links,01/07/2021,346470,460.53,Zen Internet Limited
Central Services to the Public,Management & Support Services,IT,Supplies & Services,Communications & Computing,Communication Links,29/07/2021,348461,460.53,Zen Internet Limited
Cultural & Related,Culture & Heritage,Premises & Asset Management,Premises related Expenditure,Water Services,Water And Sewerage Charges,15/07/2021,345848,559.56,Castle Water Limited
Planning & Development,Community Development,Planning Policy & Economic Development ,Supplies & Services,Grants & Subscriptions,Contributions,29/07/2021,348107,560,Hampshire County Council
"Highways, Roads & Transport",Public Transport,Plan Pol & Transport,Third Party Payments,Transport Operators in Respect of Concessionary Fares,Voluntary Orgs Reimbursement,01/07/2021,346912,563.5,Romsey Good Neighbours
Cultural & Related,Recreation & Sport,Community and Leisure ,Premises related Expenditure,Repairs Alterations & Maintenance of Buildings,Planned Maintenance - Non Est,15/07/2021,347690,473,Flow Mech Products Ltd
External Trading Accounts,Property Investments,Premises & Asset Management,Premises related Expenditure,Grounds Maintenance Costs,Grounds Maintenance Contracts,01/07/2021,346848,473.19,Landmarks Sustainability Ltd
External Trading Accounts,Property Investments,Premises & Asset Management,Premises related Expenditure,Grounds Maintenance Costs,Grounds Maintenance Contracts,29/07/2021,348665,473.19,Landmarks Sustainability Ltd
Cultural & Related,Recreation & Sport,Community and Leisure ,Premises related Expenditure,Grounds Maintenance Costs,Gm - Additional Works,22/07/2021,348091,475,Personal Data - Data Protection Act 1998
Cultural & Related,Recreation & Sport,Premises & Asset Management,Premises related Expenditure,Water Services,Water And Sewerage Charges,15/07/2021,347424,572.03,Castle Water Limited
Cultural & Related,Recreation & Sport,Community and Leisure ,Supplies & Services,"Equipment, Furniture & Materials",Purchase Equip + Materials,01/07/2021,346042,481.95,Bishop Sports & Leisure
Cultural & Related,Open Spaces,Environmental,Transport Related Expenditure,Direct Transport Costs,Repair Materials,29/07/2021,348505,482,A T H Machinery Ltd
Central Services to the Public,Management & Support Services,Premises & Asset Management,Third Party Payments,Other Establishments,Private Contractors,08/07/2021,346947,482,Axis Fire And Security Services Ltd
Central Services to the Public,Management & Support Services,Environmental,Supplies & Services,"Printing, Stationery & General Office Expenses",Photocopying Costs,22/07/2021,347671,483.62,Ricoh Uk Ltd
Central Services to the Public,Local Tax Collection,Revenues,Supplies & Services,Communications & Computing,Hardware Maintenance,08/07/2021,346266,486,Twofold Limited
Cultural & Related,Recreation & Sport,Premises & Asset Management,Premises related Expenditure,Water Services,Water And Sewerage Charges,15/07/2021,345846,593.4,Castle Water Limited
Environmental & Regulatory,Regulatory Services,Housing and Environmental Health ,Supplies & Services,Grants and subscriptions,Capital Grants,22/07/2021,348303,600,Architectural Survey Services Ltd
Central Services to the Public,Local Tax Collection,Revenues,Supplies & Services,Communications & Computing,Software Maintenance,22/07/2021,347826,500,Nec Software Solutions Uk Limited
Central Services,Corporate & Democratic Core,Corporate & Democratic,Supplies & Services,Catering,Catering,08/07/2021,346958,600,Romsey Abbey Pcc
Planning & Development,Community Development,Planning Policy & Economic Development ,Supplies & Services,Grants & Subscriptions,Contributions,01/07/2021,346719,610,Anton County Junior School
Cultural & Related,Open Spaces,Environmental,Supplies & Services,"Equipment, Furniture & Materials",Purchases for playgrounds,08/07/2021,345836,512.2,Sutcliffe Play Ltd
"Highways, Roads & Transport",Parking Services,Plan Pol & Transport,Premises related Expenditure,Repairs Alterations & Maintenance of Buildings,Estates premises costs - AMP,08/07/2021,346872,515.38,Signway Supplies (Datchet Ltd)
Environmental & Regulatory,Street Cleansing (not chargeable to Highways),Environmental,Transport Related Expenditure,Direct Transport Costs,Tyres,15/07/2021,347319,300.35,Tructyre Ats
Environmental & Regulatory,Waste management,Environmental,Transport Related Expenditure,Direct Transport Costs,Tyres,15/07/2021,347319,215.52,Tructyre Ats
Cultural & Related,Open Spaces,Environmental,Supplies & Services,Miscellaneous Expenses,Waste Collection,15/07/2021,347188,519.36,Collard Enviromental Ltd
Central Services to the Public,Management & Support Services,Premises & Asset Management,Third Party Payments,Other Establishments,Private Contractors,29/07/2021,348570,520,Waterside Blinds
Cultural & Related,Open Spaces,Community and Leisure ,Supplies & Services,"Equipment, Furniture & Materials",Purchase Equip + Materials,01/07/2021,346738,521,Pointer Group Ltd
Planning & Development,Community Development,Community and Leisure ,Supplies & Services,Grants & Subscriptions,Grants,08/07/2021,347442,628,Penton Mewsey Parish Council
Environmental & Regulatory,Regulatory Services,Premises & Asset Management,Premises related Expenditure,Water Services,Water And Sewerage Charges,15/07/2021,345864,628.97,Castle Water Limited
Planning & Development,Community Development,Community and Leisure ,Supplies & Services,Grants & Subscriptions,Grants,21/07/2021,348225,633,Butterflies Bereavement Support
Environmental & Regulatory,Waste management,Environmental,Employees,Indirect Employee Expenses,Agency Staff - Waged Posts,22/07/2021,348307,533.45,24-7 Staffing
Environmental & Regulatory,Street Cleansing (not chargeable to Highways),Environmental,Supplies & Services,Miscellaneous Expenses,Hazardous / Fly Tipped Waste,29/07/2021,347484,535,Bkp Waste & Recycling Ltd
Central Services to the Public,Management & Support Services,Environmental,Supplies & Services,"Clothes, Uniforms & Laundry",Clothing + Uniforms,08/07/2021,347173,370.51,Smi Group
Central Services to the Public,Management & Support Services,Environmental,Supplies & Services,Miscellaneous Expenses,Health And Safety,08/07/2021,347173,167.95,Smi Group
Environmental & Regulatory,Street Cleansing (not chargeable to Highways),Environmental,Employees,Indirect Employee Expenses,Agency Staff - Waged Posts,22/07/2021,346504,539.11,24-7 Staffing
Central Services to the Public,Management & Support Services,IT,Supplies & Services,"Printing, Stationery & General Office Expenses",Stationery,29/07/2021,347724,542.95,Digital Id Ltd
Environmental & Regulatory,Waste management,Environmental,Employees,Indirect Employee Expenses,Agency Staff - Waged Posts,15/07/2021,347661,550.94,24-7 Staffing
Central Services to the Public,Local Tax Collection,Revenues,Supplies & Services,"Equipment, Furniture & Materials",Equipment Lease Rentals,15/07/2021,347711,138.56,Quadient Finance Uk Ltd
Central Services to the Public,Local Tax Collection,Revenues,Supplies & Services,"Equipment, Furniture & Materials",Equipment Lease Rentals,15/07/2021,347711,193.98,Quadient Finance Uk Ltd
Housing Services,Housing Benefits ,Revenues,Supplies & Services,"Equipment, Furniture & Materials",Equipment Lease Rentals,15/07/2021,347711,110.84,Quadient Finance Uk Ltd
Central Services to the Public,Local Tax Collection,Revenues,Supplies & Services,"Equipment, Furniture & Materials",Equipment Lease Rentals,15/07/2021,347711,110.85,Quadient Finance Uk Ltd
Central Services to the Public,Management & Support Services,Environmental,Transport Related Expenditure,Direct Transport Costs,Repair Materials,29/07/2021,348217,557.1,A T H Machinery Ltd
Central Services to the Public,Elections,Legal & Democratic,Supplies & Services,"Printing, Stationery & General Office Expenses",Postage Costs,22/07/2021,348123,557.33,Financial Data Management Plc
Central Services to the Public,Management & Support Services,Environmental,Supplies & Services,"Equipment, Furniture & Materials",Maintenance Equip + Materials,15/07/2021,347321,573.71,Hyphose Ltd
Central Services to the Public,Management & Support Services,Chief Executive's,Employees,Indirect Employee Expenses,Advertising Of Vacancies,22/07/2021,348072,575,Guardian News & Media Ltd
Planning & Development,Development Control,Planning & Building,Supplies & Services,"Printing, Stationery & General Office Expenses",Photocopying Costs,15/07/2021,347678,406.98,Ricoh Uk Ltd
Planning & Development,Planning Policy,Plan Pol & Transport,Supplies & Services,"Printing, Stationery & General Office Expenses",Photocopying Costs,15/07/2021,347678,170.61,Ricoh Uk Ltd
External Trading Accounts,Economic Development,Premises & Asset Management,Premises related Expenditure,Repairs Alterations & Maintenance of Buildings,Planned Maintenance - Non Est,22/07/2021,348134,292.5,Empire Industrial Doors Ltd
Cultural & Related,Culture & Heritage,Premises & Asset Management,Premises related Expenditure,Repairs Alterations & Maintenance of Buildings,Planned Maintenance - Non Est,22/07/2021,348134,97.5,Empire Industrial Doors Ltd
Central Services to the Public,Management & Support Services,Premises & Asset Management,Premises related Expenditure,Repairs Alterations & Maintenance of Buildings,Planned Maintenance - Non Est,22/07/2021,348134,97.5,Empire Industrial Doors Ltd
Central Services to the Public,Management & Support Services,Premises & Asset Management,Premises related Expenditure,Repairs Alterations & Maintenance of Buildings,Planned Maintenance - Non Est,22/07/2021,348134,49.17,Empire Industrial Doors Ltd
Cultural & Related,Culture & Heritage,Community and Leisure ,Premises related Expenditure,Repairs Alterations & Maintenance of Buildings,Planned Maintenance - Non Est,22/07/2021,348134,49.17,Empire Industrial Doors Ltd
Planning & Development,Development Control,Planning & Building,Supplies & Services,Miscellaneous Expenses,Advertising,01/07/2021,345998,593.8,Hampshire Media Limited
Cultural & Related,Open Spaces,Environmental,Transport Related Expenditure,Direct Transport Costs,Petrol,22/07/2021,348218,613.77,Fuel Card Services Ltd
Central Services to the Public,Management & Support Services,Premises & Asset Management,Supplies & Services,Miscellaneous Expenses,Waste Collection,29/07/2021,348483,429.38,Suez Recycling And Recovery Uk Ltd
Environmental & Regulatory,Regulatory Services,Premises & Asset Management,Supplies & Services,Miscellaneous Expenses,Waste Collection,29/07/2021,348483,187.27,Suez Recycling And Recovery Uk Ltd
Planning & Development,Economic Development,Planning Policy & Economic Development ,Supplies & Services,Grants & Subscriptions,Grants,15/07/2021,343915,750,Absolar Solutions Ltd
Cultural & Related,Tourism,Planning Policy & Economic Development ,Supplies & Services,Miscellaneous Expenses,Advertising,15/07/2021,346954,625,Apl Media Ltd
Planning & Development,Economic Development,Planning Policy & Economic Development ,Supplies & Services,Grants & Subscriptions,Grants,29/07/2021,347349,750,Luxury Homemade Donuts
Central Services to the Public,Management & Support Services,Finance,Supplies & Services,"Printing, Stationery & General Office Expenses",Postage Costs,08/07/2021,346729,632.19,Whistl Uk Ltd
Environmental & Regulatory,Waste management,Environmental,Transport Related Expenditure,Direct Transport Costs,External Garages,15/07/2021,347337,632.39,Terberg Matec Uk Limited
Environmental & Regulatory,Waste management,Environmental,Transport Related Expenditure,Direct Transport Costs,Repair Materials,29/07/2021,348479,633.02,Dennis Eagle Ltd
Environmental & Regulatory,Waste management,Environmental,Employees,Indirect Employee Expenses,Agency Staff - Waged Posts,22/07/2021,348286,647.13,24-7 Staffing
Environmental & Regulatory,"Cemetery, Cremation and Mortuary Services",Community and Leisure ,Supplies & Services,Miscellaneous Expenses,National Assist Act Burials,14/07/2021,346496,780,Dunnings Funeral Services
Cultural & Related,Open Spaces,Environmental,Transport Related Expenditure,Direct Transport Costs,Petrol,15/07/2021,347340,650.83,Fuel Card Services Ltd
External Trading Accounts,Business Parks,Premises & Asset Management,Supplies & Services,Miscellaneous Expenses,Waste Collection,08/07/2021,347183,652.6,Basingstoke Skip Hire & Sthrn Waste Mgt Ltd
Central Services to the Public,Management & Support Services,Environmental,Employees,Indirect Employee Expenses,Temporary Staff,22/07/2021,347664,800,Parrish Transport Solutions Ltd
Central Services to the Public,Management & Support Services,Environmental,Employees,Indirect Employee Expenses,Temporary Staff,22/07/2021,347665,800,Parrish Transport Solutions Ltd
Central Services to the Public,Management & Support Services,Environmental,Employees,Indirect Employee Expenses,Temporary Staff,22/07/2021,348222,800,Parrish Transport Solutions Ltd
Cultural & Related,Open Spaces,Environmental,Supplies & Services,Communications & Computing,Mobile Telephone Charges,29/07/2021,348283,206.65,Vodafone Limited
Environmental & Regulatory,Waste & Recycling Management,Environmental,Supplies & Services,Communications & Computing,Mobile Telephone Charges,29/07/2021,348283,64.79,Vodafone Limited
Environmental & Regulatory,Street Cleansing (not chargeable to Highways),Environmental,Supplies & Services,Communications & Computing,Mobile Telephone Charges,29/07/2021,348283,143.83,Vodafone Limited
Environmental & Regulatory,Waste management,Environmental,Supplies & Services,Communications & Computing,Mobile Telephone Charges,29/07/2021,348283,178.5,Vodafone Limited
Central Services to the Public,Management & Support Services,Environmental,Supplies & Services,Communications & Computing,Mobile Telephone Charges,29/07/2021,348283,48.43,Vodafone Limited
Central Services to the Public,Management & Support Services,Environmental,Supplies & Services,Communications & Computing,Mobile Telephone Charges,29/07/2021,348283,31.5,Vodafone Limited
Environmental & Regulatory,Waste management,Environmental,Employees,Indirect Employee Expenses,Agency Staff - Waged Posts,29/07/2021,348683,675.36,Aligra
Central Services to the Public,Management & Support Services,Finance,Supplies & Services,"Printing, Stationery & General Office Expenses",Postage Costs,29/07/2021,348101,696.34,Whistl Uk Ltd
Environmental & Regulatory,Waste management,Environmental,Employees,Indirect Employee Expenses,Agency Staff - Waged Posts,22/07/2021,348287,709.78,24-7 Staffing
Environmental & Regulatory,Waste management,Environmental,Transport Related Expenditure,Direct Transport Costs,Repair Materials,29/07/2021,348478,252.82,Dennis Eagle Ltd
Environmental & Regulatory,Waste management,Environmental,Transport Related Expenditure,Direct Transport Costs,Repair Materials,29/07/2021,348478,461.54,Dennis Eagle Ltd
Environmental & Regulatory,Waste management,Environmental,Employees,Indirect Employee Expenses,Agency Staff - Waged Posts,29/07/2021,348681,724.85,Aligra
Central Services to the Public,Local Tax Collection,Revenues,Supplies & Services,Services,Professional Fees,22/07/2021,347650,0,Ross & Roberts
Environmental & Regulatory,Waste management,Environmental,Employees,Indirect Employee Expenses,Agency Staff - Waged Posts,22/07/2021,346408,612.48,Simple Recruitment Services Ltd
Environmental & Regulatory,Waste management,Environmental,Employees,Indirect Employee Expenses,Agency Staff - Waged Posts,22/07/2021,346408,118.32,Simple Recruitment Services Ltd
Central Services to the Public,Management & Support Services,Premises & Asset Management,Supplies & Services,Communications & Computing,Telephone Tracking System,15/07/2021,347316,48,Teletrac Navman (Uk) Ltd
Environmental & Regulatory,Regulatory Services,Housing and Environmental Health ,Supplies & Services,Communications & Computing,Telephone Tracking System,15/07/2021,347316,6,Teletrac Navman (Uk) Ltd
Environmental & Regulatory,Regulatory Services,Housing and Environmental Health ,Supplies & Services,Communications & Computing,Telephone Tracking System,15/07/2021,347316,12,Teletrac Navman (Uk) Ltd
Cultural & Related,Open Spaces,Community and Leisure ,Supplies & Services,Communications & Computing,Telephone Tracking System,15/07/2021,347316,6,Teletrac Navman (Uk) Ltd
Cultural & Related,Open Spaces,Community and Leisure ,Supplies & Services,Communications & Computing,Telephone Tracking System,15/07/2021,347316,6,Teletrac Navman (Uk) Ltd
"Highways, Roads & Transport",Parking Services,Plan Pol & Transport,Supplies & Services,Communications & Computing,Telephone Tracking System,15/07/2021,347316,12,Teletrac Navman (Uk) Ltd
Cultural & Related,Open Spaces,Environmental,Supplies & Services,Communications & Computing,Telephone Tracking System,15/07/2021,347316,273.99,Teletrac Navman (Uk) Ltd
Environmental & Regulatory,Waste & Recycling Management,Environmental,Supplies & Services,Communications & Computing,Telephone Tracking System,15/07/2021,347316,36,Teletrac Navman (Uk) Ltd
Environmental & Regulatory,Street Cleansing (not chargeable to Highways),Environmental,Supplies & Services,Communications & Computing,Telephone Tracking System,15/07/2021,347316,174.7,Teletrac Navman (Uk) Ltd
Environmental & Regulatory,Waste management,Environmental,Supplies & Services,Communications & Computing,Telephone Tracking System,15/07/2021,347316,128,Teletrac Navman (Uk) Ltd
Environmental & Regulatory,Waste management,Environmental,Supplies & Services,Communications & Computing,Telephone Tracking System,15/07/2021,347316,12,Teletrac Navman (Uk) Ltd
Central Services to the Public,Management & Support Services,Environmental,Supplies & Services,Communications & Computing,Telephone Tracking System,15/07/2021,347316,18,Teletrac Navman (Uk) Ltd
Planning & Development,Community Development,Planning Policy & Economic Development ,Supplies & Services,Grants & Subscriptions,Contributions,15/07/2021,346861,900,Balksbury Junior School
Central Services to the Public,Management & Support Services,Environmental,Employees,Indirect Employee Expenses,Agency Staff - Waged Posts,01/07/2021,346464,754.2,Proactive Personnel Ltd
Central Services to the Public,Management & Support Services,Environmental,Employees,Indirect Employee Expenses,Agency Staff - Waged Posts,29/07/2021,346889,754.2,Proactive Personnel Ltd
Central Services to the Public,Management & Support Services,Environmental,Employees,Indirect Employee Expenses,Agency Staff - Waged Posts,29/07/2021,348473,754.2,Proactive Personnel Ltd
Cultural & Related,Open Spaces,Environmental,Transport Related Expenditure,Direct Transport Costs,Repair Materials,15/07/2021,347686,757.04,A T H Machinery Ltd
Cultural & Related,Open Spaces,Environmental,Supplies & Services,"Equipment, Furniture & Materials",Purchase Equip + Materials,08/07/2021,347399,763,A T H Machinery Ltd
Environmental & Regulatory,Waste & Recycling Management,Environmental,Transport Related Expenditure,Direct Transport Costs,Repair Materials,15/07/2021,347326,764.48,Hyphose Ltd
Central Services to the Public,Management & Support Services,Premises & Asset Management,Third Party Payments,Other Establishments,Private Contractors,15/07/2021,347696,771.8,Zip Heaters (Uk) Ltd
Cultural & Related,Open Spaces,Environmental,Transport Related Expenditure,Direct Transport Costs,Repair Materials,08/07/2021,347161,326.1,Spaldings (Uk) Limited
Central Services to the Public,Management & Support Services,Environmental,Transport Related Expenditure,Direct Transport Costs,Workshop Consumables,08/07/2021,347161,201.35,Spaldings (Uk) Limited
Central Services to the Public,Management & Support Services,Environmental,Transport Related Expenditure,Direct Transport Costs,Repair Materials,08/07/2021,347161,244.8,Spaldings (Uk) Limited
Planning & Development,Community Development,Planning Policy & Economic Development ,Supplies & Services,Grants & Subscriptions,Contributions,01/07/2021,346862,940,Portway Schools Association
Central Services to the Public,Management & Support Services,Environmental,Supplies & Services,"Clothes, Uniforms & Laundry",Clothing + Uniforms,15/07/2021,347735,635.45,Smi Group
Central Services to the Public,Management & Support Services,Environmental,Supplies & Services,Miscellaneous Expenses,Health And Safety,15/07/2021,347735,154,Smi Group
Central Services to the Public,Management & Support Services,Finance,Supplies & Services,"Printing, Stationery & General Office Expenses",Postage Costs,15/07/2021,347317,794.04,Whistl Uk Ltd
"Highways, Roads & Transport",Parking Services,Plan Pol & Transport,Supplies & Services,Services,Professional Fees,15/07/2021,347452,0,Marston (Holdings) Ltd
Environmental & Regulatory,Regulatory Services,Housing and Environmental Health ,Employees,Indirect Employee Expenses,Advertising Of Vacancies,08/07/2021,347392,800,Chartered Inst. Of Environmental Health
Cultural & Related,Open Spaces,Environmental,Transport Related Expenditure,Direct Transport Costs,Repair Materials,29/07/2021,348503,802.68,A T H Machinery Ltd
Cultural & Related,Open Spaces,Environmental,Transport Related Expenditure,Direct Transport Costs,Repair Materials,15/07/2021,347330,806,A T H Machinery Ltd
Environmental & Regulatory,Street Cleansing (not chargeable to Highways),Environmental,Transport Related Expenditure,Direct Transport Costs,Tyres,15/07/2021,347339,226.64,Tructyre Ats
Environmental & Regulatory,Waste management,Environmental,Transport Related Expenditure,Direct Transport Costs,Tyres,15/07/2021,347339,167.77,Tructyre Ats
Environmental & Regulatory,Waste management,Environmental,Transport Related Expenditure,Direct Transport Costs,Tyres,15/07/2021,347339,415.09,Tructyre Ats
Central Services to the Public,Management & Support Services,IT,Supplies & Services,"Equipment, Furniture & Materials",IT Supp and Serv AMP,15/07/2021,347342,813,Bt Business Direct
Environmental & Regulatory,Street Cleansing (not chargeable to Highways),Environmental,Supplies & Services,Miscellaneous Expenses,Vehicle insurance claims,01/07/2021,346295,819.97,Argosy Ltd T/A Andover Self Drive
Planning & Development,Development Control,Planning & Building,Supplies & Services,Services,Project Consultancy - Policy,15/07/2021,347713,825,Reading Agricultural Consultants Ltd
Planning & Development,Community Development,Community and Leisure ,Supplies & Services,Grants & Subscriptions,Grants,15/07/2021,347892,1000,Nursling & Rownhams Social Club
Planning & Development,Community Development,Community and Leisure ,Supplies & Services,Grants & Subscriptions,Grants,22/07/2021,348315,1000,Forces Re-Engineered Ltd
Planning & Development,Community Development,Community and Leisure ,Supplies & Services,Grants & Subscriptions,Grants,01/07/2021,346955,1000,Andover C Of E Primary School
Environmental & Regulatory,Waste management,Environmental,Transport Related Expenditure,Direct Transport Costs,Repair Materials,08/07/2021,346888,837.97,Adams Morey Ltd
Environmental & Regulatory,Waste & Recycling Management,Environmental,Employees,Indirect Employee Expenses,Agency Staff - Waged Posts,15/07/2021,347659,642.6,Golden Orb Solutions
Environmental & Regulatory,Waste management,Environmental,Employees,Indirect Employee Expenses,Agency Staff - Waged Posts,15/07/2021,347659,205.3,Golden Orb Solutions
Central Services to the Public,Management & Support Services,Premises & Asset Management,Supplies & Services,Services,Training Courses,15/07/2021,347477,850,Hss Hire Service Group Ltd
Central Services to the Public,Management & Support Services,Premises & Asset Management,Supplies & Services,Services,Training Courses,15/07/2021,347478,850,Hss Hire Service Group Ltd
Environmental & Regulatory,Street Cleansing (not chargeable to Highways),Environmental,Supplies & Services,Miscellaneous Expenses,Vehicle insurance claims,29/07/2021,348106,850.34,Argosy Ltd T/A Andover Self Drive
Planning & Development,Building Control,Planning & Building,Employees,Indirect Employee Expenses,Temporary Staff,15/07/2021,347396,853.48,Hays Specialist Recruitment
Environmental & Regulatory,Waste & Recycling Management,Environmental,Employees,Indirect Employee Expenses,Agency Staff - Waged Posts,29/07/2021,348458,861.29,Golden Orb Solutions
Environmental & Regulatory,Waste & Recycling Management,Environmental,Transport Related Expenditure,Direct Transport Costs,Repair Materials,22/07/2021,347643,861.6,Adams Morey Ltd
Environmental & Regulatory,Regulatory Services,Housing and Environmental Health ,Supplies & Services,Communications & Computing,Computer Hardware,01/07/2021,344993,43.47,Xma Limited
Central Services to the Public,Management & Support Services,IT,Supplies & Services,"Equipment, Furniture & Materials",IT Supp and Serv AMP,01/07/2021,344993,782.46,Xma Limited
Central Services to the Public,Local Tax Collection,Revenues,Supplies & Services,Communications & Computing,Computer Hardware,01/07/2021,344993,43.47,Xma Limited
"Highways, Roads & Transport",Parking Services,Plan Pol & Transport,Supplies & Services,Services,Professional Fees,08/07/2021,347158,879.25,Advam (Uk) Limited
Central Services to the Public,Management & Support Services,IT,Supplies & Services,Communications & Computing,Land Line Telephone Charges,15/07/2021,347708,884.06,Gamma
Environmental & Regulatory,Waste management,Environmental,Transport Related Expenditure,Direct Transport Costs,Repair Materials,08/07/2021,346959,890.31,Dennis Eagle Ltd
External Trading Accounts,Property Investments,Premises & Asset Management,Premises related Expenditure,Rates,Nndr,01/07/2021,346920,1069.75,Southampton City Council
Environmental & Regulatory,Street Cleansing (not chargeable to Highways),Environmental,Transport Related Expenditure,Direct Transport Costs,Repair Materials,22/07/2021,348083,901.25,Adams Morey Ltd
Central Services to the Public,Elections,Legal & Democratic,Supplies & Services,"Printing, Stationery & General Office Expenses",External Printing,15/07/2021,347406,1107.66,Financial Data Management Plc
Central Services to the Public,Management & Support Services,Environmental,Employees,Indirect Employee Expenses,Agency Staff - Waged Posts,22/07/2021,348115,930.18,Proactive Personnel Ltd
Planning & Development,Development Control,Planning & Building,Employees,Indirect Employee Expenses,Temporary Staff,01/07/2021,346868,946,Matchtech Group Uk Ltd
Central Services to the Public,Management & Support Services,Premises & Asset Management,Supplies & Services,"Equipment, Furniture & Materials",Purchase Materials (Job Cost),15/07/2021,347866,956.31,Howdens Joinery Co
Environmental & Regulatory,Waste management,Environmental,Employees,Indirect Employee Expenses,Agency Staff - Waged Posts,15/07/2021,347657,960.38,24-7 Staffing
Central Services to the Public,Management & Support Services,HR Services,Supplies & Services,Miscellaneous Expenses,Medical Fees,29/07/2021,344884,500,University Hospital Soton Nhs Foundation Trst
Environmental & Regulatory,Regulatory Services,Housing and Environmental Health ,Supplies & Services,Miscellaneous Expenses,Medical Fees,29/07/2021,344884,171,University Hospital Soton Nhs Foundation Trst
Housing Services,Homelessness,Housing and Environmental Health ,Supplies & Services,Miscellaneous Expenses,Medical Fees,29/07/2021,344884,32,University Hospital Soton Nhs Foundation Trst
Central Services to the Public,Management & Support Services,IT,Supplies & Services,Miscellaneous Expenses,Medical Fees,29/07/2021,344884,19,University Hospital Soton Nhs Foundation Trst
Planning & Development,Development Control,Planning & Building,Supplies & Services,Miscellaneous Expenses,Medical Fees,29/07/2021,344884,51,University Hospital Soton Nhs Foundation Trst
Cultural & Related,Open Spaces,Environmental,Supplies & Services,Miscellaneous Expenses,Medical Fees,29/07/2021,344884,76,University Hospital Soton Nhs Foundation Trst
Environmental & Regulatory,Street Cleansing (not chargeable to Highways),Environmental,Supplies & Services,Miscellaneous Expenses,Medical Fees,29/07/2021,344884,38,University Hospital Soton Nhs Foundation Trst
Environmental & Regulatory,Waste management,Environmental,Supplies & Services,Miscellaneous Expenses,Medical Fees,29/07/2021,344884,233,University Hospital Soton Nhs Foundation Trst
Central Services to the Public,Management & Support Services,Finance,Supplies & Services,"Printing, Stationery & General Office Expenses",Postage Costs,01/07/2021,346294,966.56,Whistl Uk Ltd
Central Services to the Public,Management & Support Services,Environmental,Employees,Indirect Employee Expenses,Agency Staff - Waged Posts,22/07/2021,347717,980.46,Proactive Personnel Ltd
Environmental & Regulatory,Waste management,Environmental,Transport Related Expenditure,Direct Transport Costs,Repair Materials,29/07/2021,348480,992.01,Dennis Eagle Ltd
Central Services,Corporate & Democratic Core,Corporate & Democratic,Supplies & Services,Communications & Computing,Computer Software,29/07/2021,348600,1020,Web Feet
Planning & Development,Development Control,Planning & Building,Employees,Indirect Employee Expenses,Temporary Staff,01/07/2021,346869,1032,Matchtech Group Uk Ltd
Central Services to the Public,Management & Support Services,IT,Supplies & Services,Communications & Computing,Computer Hardware,29/07/2021,348581,1044.75,Lesar Uk Ltd
Cultural & Related,Open Spaces,Environmental,Transport Related Expenditure,Direct Transport Costs,Tyres,22/07/2021,348102,8.19,Tructyre Ats
Environmental & Regulatory,Street Cleansing (not chargeable to Highways),Environmental,Transport Related Expenditure,Direct Transport Costs,Tyres,22/07/2021,348102,7.02,Tructyre Ats
Environmental & Regulatory,Waste management,Environmental,Transport Related Expenditure,Direct Transport Costs,Tyres,22/07/2021,348102,1065.72,Tructyre Ats
Cultural & Related,Open Spaces,Community and Leisure ,Premises related Expenditure,Grounds Maintenance Costs,Gm - Additional Works,22/07/2021,348213,422,Purbeck Civil Engineering Limited
Cultural & Related,Open Spaces,Community and Leisure ,Premises related Expenditure,Grounds Maintenance Costs,Gm - Additional Works,22/07/2021,348213,668,Purbeck Civil Engineering Limited
Central Services to the Public,Management & Support Services,Premises & Asset Management,Third Party Payments,Other Establishments,Private Contractors,15/07/2021,347702,1106.57,Options Flooring Ltd
Environmental & Regulatory,Street Cleansing (not chargeable to Highways),Environmental,Premises related Expenditure,Rents,Rents,29/07/2021,348605,1119.04,Aster Group
Central Services to the Public,Management & Support Services,Premises & Asset Management,Third Party Payments,Other Establishments,Private Contractors,15/07/2021,347699,1125,Purbeck Civil Engineering Limited
Central Services to the Public,Management & Support Services,Environmental,Transport Related Expenditure,Direct Transport Costs,Workshop Consumables,01/07/2021,346707,973.81,Md Services (Andover) Ltd
Central Services to the Public,Management & Support Services,Environmental,Supplies & Services,"Equipment, Furniture & Materials",Purchase Equip + Materials,01/07/2021,346707,151.44,Md Services (Andover) Ltd
Environmental & Regulatory,Waste management,Environmental,Employees,Indirect Employee Expenses,Agency Staff - Waged Posts,15/07/2021,347402,1031.96,24-7 Staffing
Environmental & Regulatory,Waste management,Environmental,Employees,Indirect Employee Expenses,Agency Staff - Waged Posts,15/07/2021,347402,96.15,24-7 Staffing
Environmental & Regulatory,Street Cleansing (not chargeable to Highways),Environmental,Supplies & Services,"Equipment, Furniture & Materials",Maintenance Equip + Materials,29/07/2021,347174,1154.4,Imperial Polythene Products Ltd
Central Services to the Public,Management & Support Services,Premises & Asset Management,Third Party Payments,Other Establishments,Private Contractors,08/07/2021,347175,1160,Doorgear Limited
Planning & Development,Building Control,Planning & Building,Employees,Indirect Employee Expenses,Temporary Staff,15/07/2021,345805,1170,Hays Specialist Recruitment
Environmental & Regulatory,Waste management,Environmental,Employees,Indirect Employee Expenses,Agency Staff - Waged Posts,22/07/2021,348256,376.04,24-7 Staffing
Environmental & Regulatory,Waste management,Environmental,Employees,Indirect Employee Expenses,Agency Staff - Waged Posts,22/07/2021,348256,797.49,24-7 Staffing
Environmental & Regulatory,Waste management,Environmental,Employees,Indirect Employee Expenses,Agency Staff - Waged Posts,22/07/2021,348220,393.53,24-7 Staffing
Environmental & Regulatory,Waste management,Environmental,Employees,Indirect Employee Expenses,Agency Staff - Waged Posts,22/07/2021,348220,784.96,24-7 Staffing
Planning & Development,Building Control,Planning & Building,Employees,Indirect Employee Expenses,Temporary Staff,22/07/2021,347814,1220.13,Hays Specialist Recruitment
Housing Services,Homelessness,Housing and Environmental Health ,Supplies & Services,Grants & Subscriptions,Grants,01/07/2021,346960,1479,Sovereign Housing
Environmental & Regulatory,Waste & Recycling Management,Environmental,Transport Related Expenditure,Direct Transport Costs,Tyres,01/07/2021,346418,28.5,Tructyre Ats
Environmental & Regulatory,Waste management,Environmental,Transport Related Expenditure,Direct Transport Costs,Tyres,01/07/2021,346418,968.17,Tructyre Ats
Environmental & Regulatory,Waste management,Environmental,Transport Related Expenditure,Direct Transport Costs,Tyres,01/07/2021,346418,240,Tructyre Ats
Cultural & Related,Recreation & Sport,Community and Leisure ,Supplies & Services,"Equipment, Furniture & Materials",Purchase Equip + Materials,15/07/2021,347883,1486,Aj Products (Uk) Ltd
Environmental & Regulatory,Street Cleansing (not chargeable to Highways),Environmental,Supplies & Services,Miscellaneous Expenses,Hazardous / Fly Tipped Waste,29/07/2021,347864,1241.6,Bkp Waste & Recycling Ltd
Environmental & Regulatory,Waste management,Environmental,Transport Related Expenditure,Direct Transport Costs,Repair Materials,08/07/2021,346855,1252.33,Dennis Eagle Ltd
Central Services to the Public,Management & Support Services,Environmental,Transport Related Expenditure,Direct Transport Costs,Repair Materials,29/07/2021,348474,1266.1,Terberg Matec Uk Limited
Environmental & Regulatory,Waste management,Environmental,Employees,Indirect Employee Expenses,Agency Staff - Waged Posts,29/07/2021,348491,1288,Aligra
Environmental & Regulatory,Waste management,Environmental,Employees,Indirect Employee Expenses,Agency Staff - Waged Posts,01/07/2021,346871,1295.57,24-7 Staffing
Planning & Development,Development Control,Planning & Building,Third Party Payments,Commuted Sum,s106 Developer contributions,08/07/2021,347471,1562,Amport Parish Council
Central Services,Corporate & Democratic Core,Corporate & Democratic,Supplies & Services,Services,Legal Fees,01/07/2021,345495,1590,Radcliffe Chambers
Planning & Development,Planning Policy,Plan Pol & Transport,Supplies & Services,Grants & Subscriptions,Grants,29/07/2021,347327,1605.75,Hampshire County Council
Environmental & Regulatory,Street Cleansing (not chargeable to Highways),Environmental,Supplies & Services,Services,Training Courses,29/07/2021,348489,1342,Skills Training Centre Ltd
Planning & Development,Development Control,Planning & Building,Supplies & Services,"Printing, Stationery & General Office Expenses",Written Media,22/07/2021,348206,1643,Wildy & Sons Ltd
"Highways, Roads & Transport",Public Transport,Plan Pol & Transport,Third Party Payments,Transport Operators in Respect of Concessionary Fares,Voluntary Orgs Reimbursement,22/07/2021,347821,1654,Andover Neighbourcare
Cultural & Related,Culture & Heritage,Community and Leisure ,Supplies & Services,"Printing, Stationery & General Office Expenses",Postage Costs,29/07/2021,348664,1661,John Dollin Printing Services Ltd
External Trading Accounts,Property Investments,Premises & Asset Management,Supplies & Services,Services,Professional Fees,15/07/2021,347709,1500,Dentons Ukmea Llp
External Trading Accounts,Business Parks,Premises & Asset Management,Supplies & Services,Services,Professional Fees,15/07/2021,347312,1500,Smith Price Llp
External Trading Accounts,Business Parks,Premises & Asset Management,Supplies & Services,Services,Legal Fees,29/07/2021,348268,1500,Smith Price Llp
Environmental & Regulatory,Waste management,Environmental,Transport Related Expenditure,Direct Transport Costs,Repair Materials,29/07/2021,348498,1518.77,Dennis Eagle Ltd
Environmental & Regulatory,Waste management,Environmental,Transport Related Expenditure,Direct Transport Costs,Repair Materials,08/07/2021,346891,953.77,Dennis Eagle Ltd
Environmental & Regulatory,Waste management,Environmental,Transport Related Expenditure,Direct Transport Costs,Repair Materials,08/07/2021,346891,573.08,Dennis Eagle Ltd
Environmental & Regulatory,Regulatory Services,Housing and Environmental Health ,Supplies & Services,Miscellaneous Expenses,Kennel fees,15/07/2021,347680,1541.2,Three Oak Boarding Kennels
Cultural & Related,Open Spaces,Community and Leisure ,Premises related Expenditure,Grounds Maintenance Costs,Gm - Additional Works,08/07/2021,346734,1574.2,Landmark Timber
Environmental & Regulatory,Waste management,Environmental,Employees,Indirect Employee Expenses,Agency Staff - Waged Posts,29/07/2021,348682,1472.1,Aligra
Environmental & Regulatory,Waste management,Environmental,Employees,Indirect Employee Expenses,Agency Staff - Waged Posts,29/07/2021,348682,109.48,Aligra
Central Services to the Public,Management & Support Services,Environmental,Transport Related Expenditure,Direct Transport Costs,Diesel,08/07/2021,347186,1630.16,Wp Group Limited
Cultural & Related,Open Spaces,Community and Leisure ,Premises related Expenditure,Grounds Maintenance Costs,Gm - Additional Works,29/07/2021,348582,1658.7,Rocon Contractors Ltd
Planning & Development,Community Development,Community and Leisure ,Supplies & Services,Grants & Subscriptions,Grants,29/07/2021,348669,2000,Andover Town Youth Fc
Central Services to the Public,Management & Support Services,Finance,Supplies & Services,"Clothes, Uniforms & Laundry",Clothing + Uniforms,22/07/2021,347733,1688.36,Whistl Uk Ltd
Central Services to the Public,Management & Support Services,Environmental,Transport Related Expenditure,Direct Transport Costs,Repair Materials,22/07/2021,348122,1695.13,Terberg Matec Uk Limited
Central Services to the Public,Management & Support Services,Estates and Economic Development ,Third Party Payments,Private contractors,Main Contractor Costs,01/07/2021,346427,1714,Ministry Of Play Ltd
Planning & Development,Building Control,Planning & Building,Employees,Indirect Employee Expenses,Temporary Staff,15/07/2021,346286,1725.76,Hays Specialist Recruitment
Central Services to the Public,Management & Support Services,Premises & Asset Management,Third Party Payments,Other Establishments,Private Contractors,01/07/2021,346849,1740,Axis Fire And Security Services Ltd
Environmental & Regulatory,Waste management,Environmental,Employees,Indirect Employee Expenses,Agency Staff - Waged Posts,22/07/2021,348271,1208.5,24-7 Staffing
Environmental & Regulatory,Waste management,Environmental,Employees,Indirect Employee Expenses,Agency Staff - Waged Posts,22/07/2021,348271,550.94,24-7 Staffing
Central Services to the Public,Management & Support Services,Premises & Asset Management,Third Party Payments,Other Establishments,Private Contractors,29/07/2021,348661,1823.03,Clearwater 2010 Ltd
Planning & Development,Development Control,Planning & Building,Employees,Indirect Employee Expenses,Temporary Staff,15/07/2021,347714,2213.4,Wadey Trees
Environmental & Regulatory,Waste management,Environmental,Transport Related Expenditure,Direct Transport Costs,Tyres,29/07/2021,348209,1444.47,Tructyre Ats
Central Services to the Public,Management & Support Services,Environmental,Transport Related Expenditure,Direct Transport Costs,Repair Materials,29/07/2021,348209,442,Tructyre Ats
Central Services to the Public,Management & Support Services,IT,Supplies & Services,"Equipment, Furniture & Materials",IT Supp and Serv AMP,29/07/2021,347669,1900,Idox Software Ltd
Central Services to the Public,Elections,Legal & Democratic,Supplies & Services,"Printing, Stationery & General Office Expenses",External Printing,15/07/2021,347405,2356.99,Financial Data Management Plc
Central Services to the Public,Management & Support Services,Premises & Asset Management,Third Party Payments,Other Establishments,Private Contractors,15/07/2021,347697,1965.83,Tsg Building Services Plc
Central Services to the Public,Management & Support Services,IT,Supplies & Services,Communications & Computing,Software Maintenance,01/07/2021,346709,2071.26,Phoenix Software Ltd
Central Services to the Public,Management & Support Services,Estates and Economic Development ,Third Party Payments,Private contractors,Main Contractor Costs,22/07/2021,348093,2079.13,Scandor Landscape Contractors Ltd
Planning & Development,Economic Development,Planning Policy & Economic Development ,Supplies & Services,Grants & Subscriptions,Contributions,22/07/2021,348129,2500,Eastleigh Borough Council
Environmental & Regulatory,Waste & Recycling Management,Environmental,Supplies & Services,"Equipment, Furniture & Materials",Purchase Equip + Materials,08/07/2021,345517,2128,Jrb Enterpise Ltd
Environmental & Regulatory,Waste management,Environmental,Transport Related Expenditure,Direct Transport Costs,Repair Materials,22/07/2021,348112,2145.4,Adams Morey Ltd
Central Services to the Public,Management & Support Services,Legal & Democratic,Supplies & Services,Services,Legal Fees,15/07/2021,346922,2167.5,Ch&I Associates
Central Services to the Public,Management & Support Services,Environmental,Supplies & Services,Services,Professional Fees,08/07/2021,347165,2200,Freight Transport Association Ta Logistics Uk
Environmental & Regulatory,Street Cleansing (not chargeable to Highways),Environmental,Transport Related Expenditure,Direct Transport Costs,Repair Materials,29/07/2021,348507,552.54,Md Services (Andover) Ltd
Environmental & Regulatory,Waste management,Environmental,Transport Related Expenditure,Direct Transport Costs,Repair Materials,29/07/2021,348507,202.44,Md Services (Andover) Ltd
Central Services to the Public,Management & Support Services,Environmental,Transport Related Expenditure,Direct Transport Costs,Workshop Consumables,29/07/2021,348507,699.73,Md Services (Andover) Ltd
Central Services to the Public,Management & Support Services,Environmental,Transport Related Expenditure,Direct Transport Costs,Repair Materials,29/07/2021,348507,631.88,Md Services (Andover) Ltd
Central Services to the Public,Management & Support Services,Environmental,Supplies & Services,"Equipment, Furniture & Materials",Purchase Tools,29/07/2021,348507,116.04,Md Services (Andover) Ltd
Planning & Development,Building Control,Planning & Building,Employees,Indirect Employee Expenses,Temporary Staff,15/07/2021,347157,2223.01,Hays Specialist Recruitment
Central Services,Corporate & Democratic Core,Corporate & Democratic,Supplies & Services,Services,Project Consultancy - Policy,01/07/2021,346865,2250,Digital Terrain Surveys Llp
Central Services to the Public,Management & Support Services,IT,Supplies & Services,Communications & Computing,Software Maintenance,08/07/2021,346844,2280,Idox Software Ltd
"Highways, Roads & Transport",Highways and roads - maintenance,Plan Pol & Transport,Premises related Expenditure,Repairs Alterations & Maintenance of Buildings,General Repairs,15/07/2021,347666,2317,Externiture Ltd
Planning & Development,Planning Policy,Plan Pol & Transport,Supplies & Services,Services,Project Consultancy - Policy,01/07/2021,346893,2390,Purcell Architecture Ltd
Central Services to the Public,Elections,Legal & Democratic,Supplies & Services,"Printing, Stationery & General Office Expenses",External Printing,15/07/2021,347408,2874.48,Financial Data Management Plc
Cultural & Related,Recreation & Sport,Community and Leisure ,Supplies & Services,Services,Professional Fees,22/07/2021,347882,2400,Blake Morgan
Environmental & Regulatory,Waste management,Environmental,Transport Related Expenditure,Direct Transport Costs,Repair Materials,22/07/2021,347638,2446.96,Terberg Matec Uk Limited
"Highways, Roads & Transport",Parking Services,Plan Pol & Transport,Supplies & Services,Communications & Computing,Computer Software,08/07/2021,346873,2451,Ina Parc Ltd
Cultural & Related,Open Spaces,Environmental,Supplies & Services,"Equipment, Furniture & Materials",Purchase Equip + Materials,29/07/2021,347689,2451.42,Fleet (Line Markers) Ltd
Environmental & Regulatory,Street Cleansing (not chargeable to Highways),Environmental,Employees,Indirect Employee Expenses,Agency Staff - Waged Posts,22/07/2021,348270,526.41,24-7 Staffing
Environmental & Regulatory,Waste management,Environmental,Employees,Indirect Employee Expenses,Agency Staff - Waged Posts,22/07/2021,348270,1936.67,24-7 Staffing
Cultural & Related,Recreation & Sport,Community and Leisure ,Supplies & Services,Communications & Computing,Computer Hardware,08/07/2021,346726,2532.93,Artifax Software Ltd
Planning & Development,Building Control,Planning & Building,Employees,Indirect Employee Expenses,Temporary Staff,15/07/2021,346515,2559.39,Hays Specialist Recruitment
Central Services to the Public,Management & Support Services,IT,Supplies & Services,Communications & Computing,Software Maintenance,22/07/2021,347877,2577.12,Deltascheme
Environmental & Regulatory,Regulatory Services,Housing and Environmental Health ,Supplies & Services,Grants and subscriptions,Capital Grants,08/07/2021,347451,3094.59,A & E Builders
Cultural & Related,Recreation & Sport,Community and Leisure ,Premises related Expenditure,Grounds Maintenance Costs,Gm - Additional Works,22/07/2021,348314,890.95,Stonbury Ltd
Cultural & Related,Open Spaces,Community and Leisure ,Premises related Expenditure,Grounds Maintenance Costs,Gm - Additional Works,22/07/2021,348314,1781.9,Stonbury Ltd
Central Services to the Public,Management & Support Services,Premises & Asset Management,Premises related Expenditure,Water Services,Water And Sewerage Charges,15/07/2021,347901,3274.98,Castle Water Limited
Environmental & Regulatory,Waste management,Environmental,Transport Related Expenditure,Direct Transport Costs,External Garages,22/07/2021,348141,1570.57,Dennis Eagle Ltd
Environmental & Regulatory,Waste management,Environmental,Transport Related Expenditure,Direct Transport Costs,Repair Materials,22/07/2021,348141,1207.1,Dennis Eagle Ltd
Central Services to the Public,Management & Support Services,Premises & Asset Management,Supplies & Services,"Equipment, Furniture & Materials",Purchase Equip + Materials,15/07/2021,347867,2778.94,Howdens Joinery Co
Cultural & Related,Open Spaces,Community and Leisure ,Employees,Indirect Employee Expenses,Temporary Staff,15/07/2021,346856,2800,The Arboricultural Co Ltd
Cultural & Related,Open Spaces,Community and Leisure ,Employees,Indirect Employee Expenses,Temporary Staff,29/07/2021,348654,2800,The Arboricultural Co Ltd
Central Services to the Public,Management & Support Services,Environmental,Transport Related Expenditure,Direct Transport Costs,Diesel,01/07/2021,346847,2834.76,Wp Group Limited
Environmental & Regulatory,Waste management,Environmental,Employees,Indirect Employee Expenses,Agency Staff - Waged Posts,01/07/2021,346503,2850.43,24-7 Staffing
"Highways, Roads & Transport",Highways and roads - maintenance,Plan Pol & Transport,Premises related Expenditure,Repairs Alterations & Maintenance of Buildings,Highways Repairs,01/07/2021,346708,2866.28,Irvine Grenson Ltd
Central Services to the Public,Management & Support Services,Chief Executive's,Supplies & Services,Miscellaneous Expenses,Promotions / Special Events,29/07/2021,348590,3500,Southern Policy Centre
Central Services to the Public,Elections,Legal & Democratic,Supplies & Services,"Printing, Stationery & General Office Expenses",External Printing,15/07/2021,347407,3500.28,Financial Data Management Plc
Environmental & Regulatory,Waste & Recycling Management,Environmental,Supplies & Services,Miscellaneous Expenses,Abandoned Vehicles,15/07/2021,347684,3060,Hampshire County Council
Environmental & Regulatory,Regulatory Services,Housing and Environmental Health ,Supplies & Services,Grants and subscriptions,Capital Grants,01/07/2021,346956,3702.33,Allen Plumbing & Heating Services Ltd
Environmental & Regulatory,Street Cleansing (not chargeable to Highways),Environmental,Employees,Indirect Employee Expenses,Agency Staff - Waged Posts,22/07/2021,348223,189.37,24-7 Staffing
Environmental & Regulatory,Waste management,Environmental,Employees,Indirect Employee Expenses,Agency Staff - Waged Posts,22/07/2021,348223,1988.21,24-7 Staffing
Environmental & Regulatory,Waste management,Environmental,Employees,Indirect Employee Expenses,Agency Staff - Waged Posts,22/07/2021,348223,991.69,24-7 Staffing
Cultural & Related,Recreation & Sport,Community and Leisure ,Premises related Expenditure,Repairs Alterations & Maintenance of Buildings,Estates premises costs - AMP,22/07/2021,348266,3178,Mccarthy Bainbridge Ltd
Central Services to the Public,Management & Support Services,Environmental,Transport Related Expenditure,Direct Transport Costs,Diesel,01/07/2021,346845,3196.06,Wp Group Limited
Cultural & Related,Recreation & Sport,Community and Leisure ,Supplies & Services,Miscellaneous Expenses,Promotions / Special Events,15/07/2021,347704,3304,Defibshop
Environmental & Regulatory,Waste management,Environmental,Supplies & Services,"Equipment, Furniture & Materials",Purchase Equip + Materials,29/07/2021,345834,3345,Egbert H Taylor & Co Ltd
Environmental & Regulatory,Regulatory Services,Premises & Asset Management,Premises related Expenditure,Water Services,Water And Sewerage Charges,15/07/2021,346481,4019.59,Castle Water Limited
Environmental & Regulatory,Waste & Recycling Management,Environmental,Employees,Indirect Employee Expenses,Agency Staff - Waged Posts,22/07/2021,348306,300.38,24-7 Staffing
Environmental & Regulatory,Street Cleansing (not chargeable to Highways),Environmental,Employees,Indirect Employee Expenses,Agency Staff - Waged Posts,22/07/2021,348306,617.83,24-7 Staffing
Environmental & Regulatory,Waste management,Environmental,Employees,Indirect Employee Expenses,Agency Staff - Waged Posts,22/07/2021,348306,1410.48,24-7 Staffing
Environmental & Regulatory,Waste management,Environmental,Employees,Indirect Employee Expenses,Agency Staff - Waged Posts,22/07/2021,348306,1025.21,24-7 Staffing
Environmental & Regulatory,Street Cleansing (not chargeable to Highways),Environmental,Employees,Indirect Employee Expenses,Agency Staff - Waged Posts,22/07/2021,348285,581.17,24-7 Staffing
Environmental & Regulatory,Waste management,Environmental,Employees,Indirect Employee Expenses,Agency Staff - Waged Posts,22/07/2021,348285,1658.62,24-7 Staffing
Environmental & Regulatory,Waste management,Environmental,Employees,Indirect Employee Expenses,Agency Staff - Waged Posts,22/07/2021,348285,1153.51,24-7 Staffing
Cultural & Related,Tourism,Planning Policy & Economic Development ,Supplies & Services,"Printing, Stationery & General Office Expenses",External Printing,01/07/2021,346885,3399,The Marketing Collective Ltd
Cultural & Related,Recreation & Sport,Community and Leisure ,Supplies & Services,Services,Professional Fees,15/07/2021,347667,3496,Blake Morgan
Central Services to the Public,Elections,Legal & Democratic,Supplies & Services,"Printing, Stationery & General Office Expenses",External Printing,15/07/2021,347411,4258.79,Financial Data Management Plc
Environmental & Regulatory,Regulatory Services,Premises & Asset Management,Premises related Expenditure,Water Services,Water And Sewerage Charges,15/07/2021,346482,4322.95,Castle Water Limited
Environmental & Regulatory,Regulatory Services,Premises & Asset Management,Premises related Expenditure,Water Services,Water And Sewerage Charges,15/07/2021,345872,4326.4,Castle Water Limited
External Trading Accounts,Business Parks,Premises & Asset Management,Supplies & Services,Services,Professional Fees,15/07/2021,347311,3625,Smith Price Llp
Central Services to the Public,Management & Support Services,Environmental,Transport Related Expenditure,Direct Transport Costs,Diesel,08/07/2021,347189,3678.5,Wp Group Limited
Environmental & Regulatory,Waste management,Environmental,Supplies & Services,"Equipment, Furniture & Materials",Purchase Equip + Materials,15/07/2021,346737,3680.7,Egbert H Taylor & Co Ltd
Housing Services,Homelessness,Housing and Environmental Health ,Supplies & Services,Miscellaneous Expenses,Other Miscellaneous Costs,29/07/2021,348657,4441.75,Aster Group
Central Services to the Public,Management & Support Services,Estates and Economic Development ,Third Party Payments,Private contractors,Main Contractor Costs,22/07/2021,348092,3717.42,Scandor Landscape Contractors Ltd
Environmental & Regulatory,Regulatory Services,Housing and Environmental Health ,Supplies & Services,Grants and subscriptions,Capital Grants,29/07/2021,348680,4475.42,S & J Building Services (Uk) Ltd
Central Services to the Public,Management & Support Services,Premises & Asset Management,Premises related Expenditure,Energy Costs,Gas,01/07/2021,346878,3810.2,Total Gas & Power Ltd
Central Services to the Public,Management & Support Services,Finance,Supplies & Services,Services,Project Consultancy - Policy,22/07/2021,348205,3812.5,Link Asset Services
Central Services to the Public,Management & Support Services,Environmental,Transport Related Expenditure,Direct Transport Costs,Diesel,15/07/2021,347743,3828.98,Wp Group Limited
Environmental & Regulatory,Waste management,Environmental,Transport Related Expenditure,Direct Transport Costs,External Garages,22/07/2021,347879,543.15,Dennis Eagle Ltd
Environmental & Regulatory,Waste management,Environmental,Transport Related Expenditure,Direct Transport Costs,Repair Materials,22/07/2021,347879,3335.17,Dennis Eagle Ltd
Environmental & Regulatory,Regulatory Services,Housing and Environmental Health ,Employees,Indirect Employee Expenses,Temporary Staff,22/07/2021,347682,3955.76,Vivid Resourcing
Environmental & Regulatory,Regulatory Services,Housing and Environmental Health ,Supplies & Services,Grants and subscriptions,Capital Grants,29/07/2021,348679,4800.54,Acer Renovations Ltd
"Highways, Roads & Transport",Highways and roads - maintenance,Plan Pol & Transport,Premises related Expenditure,Repairs Alterations & Maintenance of Buildings,Highways Repairs,08/07/2021,346459,4007.15,Signway Supplies (Datchet Ltd)
Environmental & Regulatory,Regulatory Services,Housing and Environmental Health ,Supplies & Services,Grants and subscriptions,Capital Grants,14/07/2021,347450,4816.47,Concept Design Solutions
Planning & Development,Development Control,Planning & Building,Supplies & Services,"Printing, Stationery & General Office Expenses",Written Media,22/07/2021,347822,4100,Haymarket Publishing
Environmental & Regulatory,Regulatory Services,Housing and Environmental Health ,Supplies & Services,Grants and subscriptions,Capital Grants,01/07/2021,346957,5055.88,Danson Developments Ltd
Central Services to the Public,Management & Support Services,Finance,Transport Related Expenditure,Contract Hire and Operating Leases,Officer lease cars,08/07/2021,347470,5099.36,Hm Revenue And Customs Only
Environmental & Regulatory,Street Cleansing (not chargeable to Highways),Environmental,Employees,Indirect Employee Expenses,Agency Staff - Waged Posts,15/07/2021,347660,97.95,24-7 Staffing
Environmental & Regulatory,Waste management,Environmental,Employees,Indirect Employee Expenses,Agency Staff - Waged Posts,15/07/2021,347660,3061.5,24-7 Staffing
Environmental & Regulatory,Waste management,Environmental,Employees,Indirect Employee Expenses,Agency Staff - Waged Posts,15/07/2021,347660,1214.43,24-7 Staffing
Environmental & Regulatory,Street Cleansing (not chargeable to Highways),Environmental,Employees,Indirect Employee Expenses,Agency Staff - Waged Posts,15/07/2021,347658,483.22,24-7 Staffing
Environmental & Regulatory,Waste management,Environmental,Employees,Indirect Employee Expenses,Agency Staff - Waged Posts,15/07/2021,347658,2808.29,24-7 Staffing
Environmental & Regulatory,Waste management,Environmental,Employees,Indirect Employee Expenses,Agency Staff - Waged Posts,15/07/2021,347658,1101.06,24-7 Staffing
Cultural & Related,Open Spaces,Environmental,Supplies & Services,Services,Project Consultancy - Policy,08/07/2021,346039,4457.15,The Play Inspection Company Ltd
Environmental & Regulatory,Street Cleansing (not chargeable to Highways),Environmental,Employees,Indirect Employee Expenses,Agency Staff - Waged Posts,22/07/2021,348288,483.22,24-7 Staffing
Environmental & Regulatory,Waste management,Environmental,Employees,Indirect Employee Expenses,Agency Staff - Waged Posts,22/07/2021,348288,3612.95,24-7 Staffing
Environmental & Regulatory,Waste management,Environmental,Employees,Indirect Employee Expenses,Agency Staff - Waged Posts,22/07/2021,348288,372.21,24-7 Staffing
Environmental & Regulatory,Waste management,Environmental,Transport Related Expenditure,Direct Transport Costs,Repair Materials,22/07/2021,347394,4504.99,Dennis Eagle Ltd
Central Services to the Public,Management & Support Services,Environmental,Transport Related Expenditure,Direct Transport Costs,Repair Materials,22/07/2021,347394,169.98,Dennis Eagle Ltd
Cultural & Related,Open Spaces,Community and Leisure ,Premises related Expenditure,Grounds Maintenance Costs,Gm - Additional Works,15/07/2021,347485,153.97,Coupe Line
"Highways, Roads & Transport",Parking Services,Plan Pol & Transport,Premises related Expenditure,Repairs Alterations & Maintenance of Buildings,Estates premises costs - AMP,15/07/2021,347485,4634.15,Coupe Line
Central Services to the Public,Management & Support Services,Environmental,Transport Related Expenditure,Direct Transport Costs,Diesel,29/07/2021,348494,4274.88,Wp Group Limited
Central Services to the Public,Management & Support Services,Environmental,Transport Related Expenditure,Direct Transport Costs,Red Derv,29/07/2021,348494,946.66,Wp Group Limited
External Trading Accounts,Business Parks,Premises & Asset Management,Premises related Expenditure,Cleaning and domestic supplies,Contract Cleaning - Non Estates,22/07/2021,348095,215.01,Hi-Spec Facilities Services Plc
Central Services to the Public,Management & Support Services,Premises & Asset Management,Premises related Expenditure,Cleaning and domestic supplies,Contract Cleaning - Non Estates,22/07/2021,348095,224.65,Hi-Spec Facilities Services Plc
Environmental & Regulatory,Regulatory Services,Premises & Asset Management,Premises related Expenditure,Cleaning and domestic supplies,Contract Cleaning - Non Estates,22/07/2021,348095,2006.74,Hi-Spec Facilities Services Plc
Cultural & Related,Recreation & Sport,Community and Leisure ,Premises related Expenditure,Cleaning and domestic supplies,Contract Cleaning - Non Estates,22/07/2021,348095,281.06,Hi-Spec Facilities Services Plc
Cultural & Related,Recreation & Sport,Community and Leisure ,Premises related Expenditure,Cleaning and domestic supplies,Contract Cleaning - Non Estates,22/07/2021,348095,752.53,Hi-Spec Facilities Services Plc
Cultural & Related,Recreation & Sport,Community and Leisure ,Premises related Expenditure,Cleaning and domestic supplies,Contract Cleaning - Non Estates,22/07/2021,348095,456.75,Hi-Spec Facilities Services Plc
Cultural & Related,Recreation & Sport,Community and Leisure ,Premises related Expenditure,Cleaning and domestic supplies,Contract Cleaning - Non Estates,22/07/2021,348095,456.75,Hi-Spec Facilities Services Plc
Environmental & Regulatory,"Cemetery, Cremation and Mortuary Services",Community and Leisure ,Premises related Expenditure,Cleaning and domestic supplies,Contract Cleaning - Non Estates,22/07/2021,348095,35.84,Hi-Spec Facilities Services Plc
Cultural & Related,Open Spaces,Community and Leisure ,Premises related Expenditure,Cleaning and domestic supplies,Contract Cleaning - Non Estates,22/07/2021,348095,752.53,Hi-Spec Facilities Services Plc
"Highways, Roads & Transport",Parking Services,Plan Pol & Transport,Premises related Expenditure,Cleaning and domestic supplies,Contract Cleaning - Non Estates,22/07/2021,348095,35.84,Hi-Spec Facilities Services Plc
Environmental & Regulatory,Street Cleansing (not chargeable to Highways),Environmental,Employees,Indirect Employee Expenses,Agency Staff - Waged Posts,15/07/2021,347403,875.02,24-7 Staffing
Environmental & Regulatory,Waste management,Environmental,Employees,Indirect Employee Expenses,Agency Staff - Waged Posts,15/07/2021,347403,2642.38,24-7 Staffing
Environmental & Regulatory,Waste management,Environmental,Employees,Indirect Employee Expenses,Agency Staff - Waged Posts,15/07/2021,347403,1793.91,24-7 Staffing
Central Services to the Public,Management & Support Services,Finance,Supplies & Services,"Printing, Stationery & General Office Expenses",Postage Costs,08/07/2021,347323,6501.72,Pitney Bowes Limited
Central Services to the Public,Elections,Legal & Democratic,Supplies & Services,"Printing, Stationery & General Office Expenses",External Printing,15/07/2021,347412,6542.4,Financial Data Management Plc
"Highways, Roads & Transport",Parking Services,Plan Pol & Transport,Premises related Expenditure,Repairs Alterations & Maintenance of Buildings,Car Park General Repairs,29/07/2021,348490,5636.76,Irvine Grenson Ltd
Central Services to the Public,Management & Support Services,Premises & Asset Management,Supplies & Services,Communications & Computing,Software Maintenance,01/07/2021,346516,1129,Bentley Systems International Ltd
"Highways, Roads & Transport",Highways and roads - maintenance,Plan Pol & Transport,Supplies & Services,Communications & Computing,Software Maintenance,01/07/2021,346516,4516,Bentley Systems International Ltd
"Highways, Roads & Transport",Parking Services,Plan Pol & Transport,Supplies & Services,Services,Professional Fees,15/07/2021,347685,1164.26,Park Now Limited
"Highways, Roads & Transport",Parking Services,Plan Pol & Transport,Transport Related Costs,Management Fee,Car Park charges,15/07/2021,347685,4592.15,Park Now Limited
Central Services to the Public,Management & Support Services,Environmental,Transport Related Expenditure,Direct Transport Costs,Diesel,08/07/2021,347187,5780.5,Wp Group Limited
Environmental & Regulatory,Waste & Recycling Management,Environmental,Supplies & Services,"Equipment, Furniture & Materials",Maintenance Equip + Materials,29/07/2021,348211,6314,Mvis Ltd
Environmental & Regulatory,Waste & Recycling Management,Environmental,Supplies & Services,"Equipment, Furniture & Materials",Purchase Equip + Materials,29/07/2021,346728,6451.65,Glasdon Uk Ltd
Central Services to the Public,Management & Support Services,IT,Supplies & Services,"Equipment, Furniture & Materials",IT Supp and Serv AMP,15/07/2021,347397,6749.54,Bt Business Direct
Environmental & Regulatory,Regulatory Services,Housing and Environmental Health ,Supplies & Services,Grants and subscriptions,Capital Grants,22/07/2021,348322,8700,Grb Groundworks Ltd
Environmental & Regulatory,Regulatory Services,Premises & Asset Management,Premises related Expenditure,Water Services,Water And Sewerage Charges,15/07/2021,342818,9578.94,Castle Water Limited
Cultural & Related,Recreation & Sport,Community and Leisure ,Supplies & Services,Services,Professional Fees,01/07/2021,346705,8280,Blake Morgan
Central Services to the Public,Elections,Legal & Democratic,Supplies & Services,"Printing, Stationery & General Office Expenses",External Printing,15/07/2021,347410,10125.18,Financial Data Management Plc
Central Services to the Public,Elections,Legal & Democratic,Supplies & Services,"Printing, Stationery & General Office Expenses",External Printing,15/07/2021,347409,10483.5,Financial Data Management Plc
Central Services to the Public,Management & Support Services,Environmental,Transport Related Expenditure,Direct Transport Costs,Diesel,22/07/2021,347742,9008.06,Wp Group Limited
Central Services to the Public,Management & Support Services,Environmental,Transport Related Expenditure,Direct Transport Costs,Diesel,29/07/2021,348497,9484.95,Wp Group Limited
Central Services to the Public,Management & Support Services,Environmental,Transport Related Expenditure,Direct Transport Costs,Diesel,01/07/2021,346846,10438,Wp Group Limited
Central Services to the Public,Management & Support Services,IT,Supplies & Services,"Equipment, Furniture & Materials",IT Supp and Serv AMP,29/07/2021,347810,10569,Bt Business Direct
Central Services to the Public,Management & Support Services,Premises & Asset Management,Premises related Expenditure,Energy Costs,Electricity,22/07/2021,347876,10831.46,Total Gas & Power Ltd
Cultural & Related,Recreation & Sport,Community and Leisure ,Supplies & Services,Communications & Computing,Computer Software,29/07/2021,348126,12455,Pitchbooking Ltd
Central Services to the Public,Elections,Legal & Democratic,Supplies & Services,"Printing, Stationery & General Office Expenses",External Printing,15/07/2021,347413,25148.4,Financial Data Management Plc
Cultural & Related,Culture & Heritage,Premises & Asset Management,Premises related Expenditure,Repairs Alterations & Maintenance of Buildings,Estates premises costs - AMP,22/07/2021,348067,25956.55,Stonewest Limited
Planning & Development,Community Development,Community and Leisure ,Supplies & Services,Grants & Subscriptions,Grants,22/07/2021,348313,57269.47,Citizen'S Advice Test Valley
Central Services to the Public,Management & Support Services,Premises & Asset Management,Premises related Expenditure,Repairs Alterations & Maintenance of Buildings,General Repairs,29/07/2021,347691,63383.53,Rocon Contractors Ltd
Central Services to the Public,Management & Support Services,Estates and Economic Development ,Third Party Payments,Private contractors,Main Contractor Costs,15/07/2021,347334,73683,Cleveland Land Services (Guisborough) Ltd
Central Services to the Public,Local Tax Collection,Revenues,Supplies & Services,Miscellaneous Expenses,Other Miscellaneous Costs,15/07/2021,347720,92563.84,Andover Town Centre Bid Ltd
External Trading Accounts,Property Investments,Estates and Economic Development ,Third Party Payments,Private contractors,Main Contractor Costs,22/07/2021,347455,95848.74,Kier Property Developments Ltd.
Cultural & Related,Recreation & Sport,Community and Leisure ,Third Party Payments,Other Establishments,ALC Management Contract-TVL,01/07/2021,346923,875377.93,Places For People Leisure Ltd - Developments
